fUSD/lending_fUSD_20250116
["ID","MTS","AMOUNT","RATE_DAILY","PERIOD"]
[349167346,1737003039806,-500.0,0.00043498,25]
[349167347,1737003039816,-360.00129182,0.00043498,25]
[349167348,1737003039830,-116.25870818,0.00043498,25]
[349167349,1737003039840,-500.0,0.00043498,25]
[349167350,1737003039850,-500.0,0.00043498,25]
[349167351,1737003039861,-500.0,0.00043498,25]
[349167352,1737003039871,-331.87931988,0.00043498,25]
[349167353,1737003039881,-500.0,0.00043498,25]
[349167354,1737003039892,-368.84,0.00043498,25]
[349167355,1737003039902,-500.0,0.00043498,25]
[349167356,1737003039912,-500.0,0.00043498,25]
[349167357,1737003039922,-375.85,0.00043498,25]
[349167358,1737003039931,-424.36,0.00043498,25]
[349167359,1737003039941,-523.31,0.00043498,25]
[349167360,1737003039952,-172.33,0.00043498,25]
[349167361,1737003039962,-500.0,0.00043498,25]
[349167362,1737003039972,-500.0,0.00043498,25]
[349167363,1737003039982,-500.0,0.00043498,25]
[349167364,1737003039992,-500.0,0.00043498,25]
[349167365,1737003040002,-500.0,0.00043498,25]
[349167366,1737003040012,-500.0,0.00043498,25]
[349167367,1737003040022,-510.12701924,0.00043499,25]
[349167368,1737003040032,-510.58173832,0.00043499,25]
[349167369,1737003040042,-511.25093444,0.00043499,25]
[349167370,1737003040052,-507.18529318,0.00043499,25]
[349167371,1737003040061,-500.0,0.00043499,25]
[349167372,1737003040071,-505.4349782,0.00043499,25]
[349167373,1737003040081,-500.0,0.00043499,25]
[349167374,1737003040090,-510.62980501,0.00043499,25]
[349167375,1737003040100,-1000.0,0.00043499,120]
[349167376,1737003040109,-500.0,0.00043499,25]
[349167377,1737003040119,-500.0,0.00043499,25]
[349167378,1737003040128,-500.0,0.00043499,25]
[349167379,1737003040138,-500.0,0.00043499,25]
[349167380,1737003040148,-500.0,0.00043499,25]
[349167381,1737003040157,-500.0,0.00043499,25]
[349167382,1737003040167,-500.0,0.00043499,25]
[349167383,1737003040176,-500.0,0.00043499,25]
[349167384,1737003040185,-199.5,0.00043499,25]
[349167385,1737003040195,-349.2,0.00043499,25]
[349167386,1737003040204,-319.9,0.00043499,25]
[349167387,1737003040213,-500.0,0.00043499,7]
[349167388,1737003040222,-500.0,0.00043499,25]
[349167389,1737003040231,-500.0,0.00043499,25]
[349167390,1737003040241,-500.0,0.00043499,25]
[349167391,1737003040251,-500.0,0.00043499,25]
[349167392,1737003040260,-500.0,0.00043499,25]
[349167393,1737003040269,-311.75336773,0.00043499,25]
[349167394,1737003040278,-448.31,0.00043499,25]
[349167395,1737003040288,-346.08,0.00043499,25]
[349167396,1737003040297,-500.0,0.00043499,25]
[349167397,1737003040307,-193.43,0.00043499,25]
[349167398,1737003040316,-350.64,0.00043499,25]
[349167399,1737003040328,-571.78,0.00043499,25]
[349167400,1737003040338,-334.46,0.00043499,25]
[349167401,1737003040347,-167.59,0.00043499,25]
[349167402,1737003040357,-500.0,0.00043499,60]
[349167403,1737003040367,-232.5,0.00043499,25]
[349167404,1737003040376,-537.17,0.00043499,25]
[349167405,1737003040387,-173.37,0.00043499,25]
[349167406,1737003040397,-192.17,0.00043499,25]
[349167407,1737003040409,-376.84,0.00043499,25]
[349167408,1737003040419,-387.92,0.00043499,25]
[349167409,1737003040429,-161.51,0.00043499,25]
[349167410,1737003040438,-289.4,0.00043499,25]
[349167411,1737003040447,-255.52,0.00043499,25]
[349167412,1737003040457,-500.0,0.00043499,25]
[349167413,1737003040467,-151.865936,0.00043499,25]
[349167414,1737003040476,-500.0,0.00043499,25]
[349167415,1737003040486,-151.865936,0.00043499,25]
[349167416,1737003040496,-390.62,0.00043499,25]
[349167417,1737003040506,-500.0,0.00043499,25]
[349167418,1737003040516,-500.0,0.00043499,25]
[349167419,1737003040525,-500.0,0.00043499,25]
[349167420,1737003040535,-500.0,0.00043499,25]
[349167421,1737003040546,-500.0,0.00043499,25]
[349167422,1737003040556,-513.24,0.00043499,25]
[349167423,1737003040566,-290.36,0.00043499,25]
[349167424,1737003040576,-500.0,0.00043499,25]
[349167425,1737003040586,-500.0,0.00043499,25]
[349167426,1737003040596,-500.0,0.00043499,25]
[349167427,1737003040606,-452.74,0.00043499,25]
[349167428,1737003040615,-500.0,0.00043499,25]
[349167429,1737003040626,-500.0,0.00043499,25]
[349167430,1737003040635,-500.0,0.00043499,25]
[349167431,1737003040645,-217.0,0.00043499,25]
[349167432,1737003040655,-500.0,0.00043499,25]
[349167433,1737003040664,-500.0,0.00043499,25]
[349167434,1737003040674,-500.0,0.00043499,25]
[349167435,1737003040683,-500.0,0.00043499,25]
[349167436,1737003040693,-266.03,0.00043499,25]
[349167437,1737003040702,-500.0,0.00043499,25]
[349167438,1737003040712,-581.84,0.00043499,25]
[349167439,1737003040722,-500.0,0.00043499,25]
[349167440,1737003040732,-341.91,0.00043499,25]
[349167441,1737003040741,-500.0,0.00043499,25]
[349167442,1737003040751,-500.0,0.00043499,25]
[349167443,1737003040761,-500.0,0.00043499,25]
[349167444,1737003040771,-500.0,0.00043499,25]
[349167445,1737003040781,-500.0,0.00043499,25]
[349167446,1737003040791,-247.08,0.00043499,25]
[349167447,1737003040800,-500.0,0.00043499,25]
[349167448,1737003040810,-643.13,0.00043499,25]
[349167449,1737003040819,-445.53,0.00043499,25]
[349167450,1737003040829,-487.65,0.00043499,25]
[349167451,1737003040839,-500.0,0.00043499,25]
[349167452,1737003040848,-500.0,0.00043499,25]
[349167453,1737003040857,-500.0,0.00043499,25]
[349167454,1737003040867,-286.31,0.00043499,25]
[349167455,1737003040877,-500.0,0.00043499,25]
[349167456,1737003040887,-500.0,0.00043499,25]
[349167457,1737003040897,-500.0,0.00043499,25]
[349167458,1737003040906,-500.0,0.00043499,25]
[349167459,1737003040916,-500.0,0.00043499,25]
[349167460,1737003040926,-420.47,0.00043499,25]
[349167461,1737003040936,-500.0,0.00043499,25]
[349167462,1737003040945,-500.0,0.00043499,25]
[349167463,1737003040955,-286.7,0.00043499,25]
[349167464,1737003040965,-319.77,0.00043499,25]
[349167465,1737003040974,-500.0,0.00043499,25]
[349167466,1737003040984,-643.3,0.00043499,25]
[349167467,1737003040994,-349.92,0.00043499,25]
[349167468,1737003041003,-500.0,0.00043499,25]
[349167469,1737003041013,-500.0,0.00043499,25]
[349167470,1737003041022,-500.0,0.00043499,25]
[349167471,1737003041032,-500.0,0.00043499,25]
[349167472,1737003041042,-500.0,0.00043499,25]
[349167473,1737003041051,-349.01,0.00043499,25]
[349167474,1737003041061,-500.0,0.00043499,25]
[349167475,1737003041071,-500.0,0.00043499,25]
[349167476,1737003041080,-351.97,0.00043499,25]
[349167477,1737003041089,-500.0,0.00043499,25]
[349167478,1737003041099,-500.0,0.00043499,25]
[349167479,1737003041108,-311.9,0.00043499,25]
[349167480,1737003041118,-627.81,0.00043499,25]
[349167481,1737003041128,-500.0,0.00043499,25]
[349167482,1737003041138,-282.37,0.00043499,25]
[349167483,1737003041148,-500.0,0.00043499,25]
[349167484,1737003041158,-500.0,0.00043499,25]
[349167485,1737003041169,-500.0,0.00043499,25]
[349167486,1737003041295,-500.0,0.00043499,25]
[349167487,1737003041306,-152.36,0.00043499,25]
[349167488,1737003041316,-262.43,0.00043499,25]
[349167489,1737003041328,-500.0,0.00043499,25]
[349167490,1737003041338,-500.0,0.00043499,25]
[349167491,1737003041348,-500.0,0.00043499,25]
[349167492,1737003041359,-383.4,0.00043499,25]
[349167493,1737003041368,-500.0,0.00043499,25]
[349167494,1737003041378,-475.36,0.00043499,25]
[349167495,1737003041388,-500.0,0.00043499,25]
[349167496,1737003041399,-369.92,0.00043499,25]
[349167497,1737003041409,-522.29,0.00043499,25]
[349167498,1737003041418,-401.44,0.00043499,25]
[349167499,1737003041428,-262.14,0.00043499,25]
[349167500,1737003041438,-500.0,0.00043499,25]
[349167501,1737003041447,-500.0,0.00043499,25]
[349167502,1737003041457,-500.0,0.00043499,25]
[349167503,1737003041467,-500.0,0.00043499,25]
[349167504,1737003041476,-162.97,0.00043499,25]
[349167505,1737003041486,-500.0,0.00043499,25]
[349167506,1737003041496,-500.0,0.00043499,25]
[349167507,1737003041505,-503.96,0.00043499,25]
[349167508,1737003041515,-500.0,0.00043499,25]
[349167509,1737003041525,-500.0,0.00043499,25]
[349167510,1737003041535,-500.0,0.00043499,25]
[349167511,1737003041544,-500.0,0.00043499,25]
[349167512,1737003041553,-459.75,0.00043499,25]
[349167513,1737003041563,-500.0,0.00043499,25]
[349167514,1737003041573,-500.0,0.00043499,25]
[349167515,1737003041582,-500.0,0.00043499,25]
[349167516,1737003041592,-500.0,0.00043499,25]
[349167517,1737003041601,-500.0,0.00043499,25]
[349167518,1737003041611,-500.0,0.00043499,25]
[349167519,1737003041621,-305.37,0.00043499,25]
[349167520,1737003041630,-381.47,0.00043499,25]
[349167521,1737003041641,-500.0,0.00043499,25]
[349167522,1737003041650,-434.54,0.00043499,25]
[349167523,1737003041659,-500.0,0.00043499,25]
[349167524,1737003041669,-500.0,0.00043499,25]
[349167525,1737003041679,-500.0,0.00043499,25]
[349167526,1737003041688,-500.0,0.00043499,25]
[349167527,1737003041698,-500.0,0.00043499,25]
[349167528,1737003041707,-500.0,0.00043499,25]
[349167529,1737003041717,-500.0,0.00043499,25]
[349167530,1737003041726,-500.0,0.00043499,25]
[349167531,1737003041735,-500.0,0.00043499,25]
[349167532,1737003041746,-500.0,0.00043499,25]
[349167533,1737003041755,-551.81,0.00043499,25]
[349167534,1737003041765,-518.05,0.00043499,25]
[349167535,1737003041774,-160.52,0.00043499,25]
[349167536,1737003041784,-630.67,0.00043499,25]
[349167537,1737003041793,-312.01,0.00043499,25]
[349167538,1737003041803,-629.07,0.00043499,25]
[349167539,1737003041812,-500.0,0.00043499,25]
[349167540,1737003041822,-268.5,0.00043499,25]
[349167541,1737003041831,-500.0,0.00043499,25]
[349167542,1737003041840,-352.56,0.00043499,25]
[349167543,1737003041850,-500.0,0.00043499,25]
[349167544,1737003041859,-296.57,0.00043499,25]
[349167545,1737003041868,-500.0,0.00043499,25]
[349167546,1737003041877,-500.0,0.00043499,25]
[349167547,1737003041888,-500.0,0.00043499,25]
[349167548,1737003041897,-500.0,0.00043499,25]
[349167549,1737003041907,-500.0,0.00043499,25]
[349167550,1737003041916,-500.0,0.00043499,25]
[349167551,1737003041925,-500.0,0.00043499,25]
[349167552,1737003041934,-500.0,0.00043499,25]
[349167553,1737003041944,-500.0,0.00043499,25]
[349167554,1737003041953,-500.0,0.00043499,25]
[349167555,1737003041962,-500.0,0.00043499,25]
[349167556,1737003041972,-500.0,0.00043499,25]
[349167557,1737003041982,-500.0,0.00043499,25]
[349167558,1737003041991,-500.0,0.00043499,25]
[349167559,1737003042001,-500.0,0.00043499,25]
[349167560,1737003042011,-500.0,0.00043499,25]
[349167561,1737003042020,-500.0,0.00043499,25]
[349167562,1737003042029,-618.8,0.00043499,25]
[349167563,1737003042039,-383.25,0.00043499,25]
[349167564,1737003042048,-500.0,0.00043499,25]
[349167565,1737003042058,-450.96,0.00043499,25]
[349167566,1737003042067,-500.0,0.00043499,25]
[349167567,1737003042077,-500.0,0.00043499,25]
[349167568,1737003042087,-230.1,0.00043499,25]
[349167569,1737003042096,-500.0,0.00043499,25]
[349167570,1737003042105,-500.0,0.00043499,25]
[349167571,1737003042115,-500.0,0.00043499,25]
[349167572,1737003042125,-500.0,0.00043499,25]
[349167573,1737003042135,-612.05600096,0.00043499,25]
[349167574,1737003042144,-500.0,0.00043499,25]
[349167575,1737003042154,-500.0,0.00043499,25]
[349167576,1737003042163,-500.0,0.00043499,25]
[349167577,1737003042173,-500.0,0.00043499,25]
[349167578,1737003042183,-500.0,0.00043499,25]
[349167579,1737003042192,-376.78823891,0.00043499,25]
[349167580,1737003042202,-326.08,0.00043499,25]
[349167581,1737003042211,-500.0,0.00043499,25]
[349167582,1737003042221,-500.0,0.00043499,25]
[349167583,1737003042231,-500.0,0.00043499,25]
[349167584,1737003042241,-500.0,0.00043499,25]
[349167585,1737003042250,-500.0,0.00043499,25]
[349167586,1737003042260,-500.0,0.00043499,25]
[349167587,1737003042270,-500.0,0.00043499,25]
[349167588,1737003042279,-500.0,0.00043499,25]
[349167589,1737003042289,-500.0,0.00043499,25]
[349167590,1737003042299,-500.0,0.00043499,25]
[349167591,1737003042309,-500.0,0.00043499,25]
[349167592,1737003042320,-500.0,0.00043499,25]
[349167593,1737003042331,-500.0,0.00043499,25]
[349167594,1737003042341,-500.0,0.00043499,25]
[349167595,1737003042351,-500.0,0.00043499,25]
[349167596,1737003042360,-500.0,0.00043499,25]
[349167597,1737003042370,-500.0,0.00043499,25]
[349167598,1737003042380,-289.94,0.00043499,25]
[349167599,1737003042391,-500.0,0.00043499,25]
[349167600,1737003042404,-500.0,0.00043499,25]
[349167601,1737003042415,-303.60668453,0.00043499,25]
[349167602,1737003042426,-500.0,0.00043499,25]
[349167603,1737003042436,-304.97,0.00043499,25]
[349167604,1737003042446,-500.0,0.00043499,25]
[349167605,1737003042456,-395.32,0.00043499,25]
[349167607,1737003042467,-500.0,0.00043499,25]
[349167609,1737003042478,-500.0,0.00043499,25]
[349167611,1737003042491,-196.05,0.00043499,25]
[349167612,1737003042501,-322.15,0.00043499,25]
[349167613,1737003042511,-158.699619,0.00043499,25]
[349167614,1737003042521,-158.699619,0.00043499,25]
[349167615,1737003042531,-436.38,0.00043499,25]
[349167616,1737003042541,-555.61,0.00043499,25]
[349167617,1737003042550,-500.0,0.00043499,25]
[349167618,1737003042560,-500.0,0.00043499,25]
[349167619,1737003042570,-500.0,0.00043499,25]
[349167621,1737003042580,-500.0,0.00043499,25]
[349167622,1737003042590,-500.0,0.00043499,25]
[349167623,1737003042599,-500.0,0.00043499,25]
[349167624,1737003042609,-645.66,0.00043499,25]
[349167625,1737003042619,-325.32,0.00043499,25]
[349167626,1737003042628,-358.64,0.00043499,25]
[349167628,1737003042640,-500.0,0.00043499,25]
[349167630,1737003042650,-500.0,0.00043499,25]
[349167631,1737003042659,-500.0,0.00043499,25]
[349167632,1737003042668,-500.0,0.00043499,25]
[349167633,1737003042678,-322.41,0.00043499,25]
[349167635,1737003042688,-500.0,0.00043499,25]
[349167636,1737003042697,-397.58,0.00043499,25]
[349167638,1737003042707,-500.0,0.00043499,25]
[349167639,1737003042716,-525.48,0.00043499,25]
[349167640,1737003042726,-580.91,0.00043499,25]
[349167641,1737003042735,-500.0,0.00043499,25]
[349167642,1737003042745,-500.0,0.00043499,25]
[349167643,1737003042755,-500.0,0.00043499,25]
[349167644,1737003042765,-500.0,0.00043499,25]
[349167645,1737003042775,-496.77363868,0.00043499,25]
[349167646,1737003042784,-555.0,0.000435,7]
[349167647,1737003042794,-23206.66961735,0.000435,37]
[349167648,1737003042855,-80584.53055643,0.000435,37]
[349167649,1737003042864,-76233.54869437,0.000435,31]
[349167650,1737003042876,-5000.0,0.000435,31]
[349167651,1737003042896,-2768.10488298,0.000435,31]
[349167652,1737003042908,-13225.94596891,0.000435,31]
[349167653,1737003042919,-500.0,0.000435,31]
[349167654,1737003042930,-2307.2250227,0.000435,31]
[349167655,1737003042941,-396.74619,0.000435,31]
[349167656,1737003042952,-307.37900006,0.000435,31]
[349167657,1737003042963,-872.11436396,0.000435,31]
[349167658,1737003042974,-2935.17699216,0.000435,31]
[349167659,1737003042985,-1788.77219429,0.000435,31]
[349167660,1737003042997,-3000.84839263,0.000435,31]
[349167661,1737003043008,-7127.80636181,0.000435,31]
[349167662,1737003043019,-1241.233425,0.000435,31]
[349167663,1737003043030,-476.67811274,0.000435,31]
[349167664,1737003043042,-1246.11544068,0.000435,31]
[349167665,1737003043053,-17736.59908138,0.000435,31]
[349167666,1737003043064,-547.85,0.000435,31]
[349167667,1737003043076,-17909.90000001,0.000435,31]
[349167668,1737003043087,-2074.85937241,0.000435,31]
[349167669,1737003043098,-1947.01661006,0.000435,31]
[349167670,1737003043110,-451.88977681,0.000435,31]
[349167671,1737003043121,-1564.34821412,0.000435,31]
[349167672,1737003045682,-980.56,0.0004344,30]
[349167673,1737003045692,-12162.84456255,0.000435,31]
[349167674,1737003045703,-622.15636844,0.000435,31]
[349167675,1737003045715,-4341.79727168,0.000435,31]
[349167676,1737003045726,-2024.8765447,0.000435,31]
[349167677,1737003045737,-634.89716244,0.000435,31]
[349167678,1737003045748,-281.0,0.000435,31]
[349167679,1737003045845,-708.19877881,0.000435,31]
[349167680,1737003045903,-30937.7059575,0.000435,31]
[349167681,1737003045915,-2241.15209879,0.000435,31]
[349167682,1737003045927,-270.775,0.000435,31]
[349167683,1737003046018,-601.62066719,0.000435,31]
[349167692,1737004231901,-2400.0,0.0002203,120]
[349167693,1737004231911,-213.75012061,0.00039815,2]
[349167694,1737004231921,-200.69271058,0.00039915,2]
[349167695,1737004231931,-519.75,0.00040115,2]
[349167696,1737004231940,-153.198,0.0004132,2]
[349167697,1737004231950,-293.0,0.00041784,30]
[349167698,1737004231959,-413.78,0.00041921,2]
[349167699,1737004231969,-250.0,0.00041925,120]
[349167700,1737004231978,-1852.42,0.00041938,2]
[349167701,1737004231989,-345.86,0.00041949,2]
[349167702,1737004231998,-581.07,0.00041968,2]
[349167703,1737004232007,-250.0,0.00041993,2]
[349167704,1737004232016,-1758.03914049,0.00041993,2]
[349167705,1737004232027,-8241.95085951,0.00041993,2]
[349167706,1737004232037,-299.99,0.00041993,120]
[349167707,1737004232046,-857.09,0.00041993,30]
[349167708,1737004232056,-150.99,0.00041993,30]
[349167709,1737004232065,-550.0,0.00042,120]
[349167710,1737004232074,-23900.0,0.00042014,2]
[349167711,1737004232087,-167.9,0.00042018,2]
[349167712,1737004232103,-532.55,0.00042033,120]
[349167713,1737004232115,-150.0,0.00042219,4]
[349167714,1737004232125,-1704.24,0.0004222,2]
[349167715,1737004232134,-1000.0,0.00042329,2]
[349167716,1737004232144,-250.0,0.00042358,2]
[349167717,1737004232154,-519.75,0.00042379,2]
[349167718,1737004232168,-162.89,0.00042505,2]
[349167719,1737004232177,-184.94,0.00042525,2]
[349167720,1737004232188,-4056.0,0.00042609,117]
[349167721,1737004232198,-980.56,0.00042618,30]
[349167722,1737004232208,-1017.43,0.00042739,120]
[349167723,1737004232217,-205.0001268,0.000429,9]
[349167724,1737004232227,-416.6583,0.00042913,2]
[349167725,1737004232236,-232.49831043,0.00042913,120]
[349167726,1737004232246,-232.49831033,0.00042939,120]
[349167727,1737004232255,-232.49831033,0.00042964,120]
[349167728,1737004232265,-232.49831033,0.0004299,120]
[349167729,1737004232275,-754.4449374,0.00043,120]
[349167730,1737004232285,-1952.894,0.00043012,66]
[349167731,1737004232294,-162.847,0.00043012,66]
[349167732,1737004232303,-500.0,0.00043013,25]
[349167733,1737004232313,-500.0,0.00043013,25]
[349167734,1737004232322,-500.0,0.00043013,25]
[349167735,1737004232332,-521.6316273,0.00043013,25]
[349167736,1737004232341,-500.0,0.00043013,25]
[349167737,1737004232351,-507.80809006,0.00043013,25]
[349167738,1737004232361,-500.0,0.00043013,25]
[349167739,1737004232372,-500.0,0.00043013,25]
[349167740,1737004232381,-500.0,0.00043013,25]
[349167741,1737004232391,-417.03991233,0.00043013,25]
[349167742,1737004232400,-441.74776065,0.00043013,25]
[349167743,1737004232410,-500.0,0.00043013,25]
[349167745,1737004232420,-500.0,0.00043013,25]
[349167747,1737004232429,-500.0,0.00043013,25]
[349167749,1737004232439,-500.0,0.00043013,25]
[349167751,1737004232448,-553.58909478,0.00043013,25]
[349167753,1737004232457,-540.98417698,0.00043013,25]
[349167755,1737004232466,-500.0,0.00043013,25]
[349167757,1737004232476,-500.0,0.00043013,25]
[349167759,1737004232485,-495.0252856,0.00043013,25]
[349167761,1737004232495,-500.0,0.00043013,25]
[349167763,1737004232504,-510.88967679,0.00043013,25]
[349167765,1737004232514,-500.0,0.00043013,25]
[349167767,1737004232523,-510.24054322,0.00043013,25]
[349167769,1737004232533,-513.56008845,0.00043013,25]
[349167771,1737004232542,-500.0,0.00043013,25]
[349167772,1737004232551,-500.0,0.00043013,25]
[349167775,1737004232560,-500.0,0.00043013,25]
[349167777,1737004232570,-500.0,0.00043013,25]
[349167778,1737004232579,-500.0,0.00043013,25]
[349167780,1737004232588,-500.0,0.00043013,25]
[349167782,1737004232598,-500.0,0.00043013,25]
[349167784,1737004232607,-500.0,0.00043013,25]
[349167785,1737004232617,-500.0,0.00043013,25]
[349167786,1737004232627,-286.43433911,0.00043013,25]
[349167787,1737004232636,-500.0,0.00043013,25]
[349167788,1737004232646,-500.0,0.00043013,25]
[349167789,1737004232655,-500.0,0.00043013,25]
[349167790,1737004232665,-500.0,0.00043013,25]
[349167791,1737004232674,-500.0,0.00043013,25]
[349167792,1737004232683,-500.0,0.00043013,25]
[349167793,1737004232692,-500.0,0.00043013,25]
[349167794,1737004232701,-500.0,0.00043013,25]
[349167795,1737004232713,-500.0,0.00043013,25]
[349167796,1737004232723,-500.0,0.00043013,25]
[349167797,1737004232732,-500.0,0.00043013,25]
[349167798,1737004232741,-604.27,0.00043013,25]
[349167799,1737004232750,-500.0,0.00043013,25]
[349167800,1737004232761,-500.0,0.00043013,25]
[349167801,1737004232771,-500.0,0.00043013,25]
[349167802,1737004232780,-500.0,0.00043013,25]
[349167803,1737004232792,-500.0,0.00043013,25]
[349167804,1737004232801,-500.0,0.00043013,25]
[349167805,1737004232811,-500.0,0.00043013,25]
[349167806,1737004232820,-500.0,0.00043013,25]
[349167807,1737004232829,-500.0,0.00043013,25]
[349167808,1737004232838,-557.2,0.00043013,25]
[349167809,1737004232848,-500.0,0.00043013,25]
[349167810,1737004232857,-500.0,0.00043013,25]
[349167811,1737004232866,-500.0,0.00043013,25]
[349167812,1737004232875,-500.0,0.00043013,25]
[349167813,1737004232884,-593.74,0.00043013,25]
[349167814,1737004232894,-519.56,0.00043013,2]
[349167815,1737004232903,-500.0,0.00043013,25]
[349167816,1737004232912,-500.0,0.00043013,25]
[349167817,1737004232921,-500.0,0.00043013,25]
[349167818,1737004232930,-500.0,0.00043013,25]
[349167819,1737004232940,-500.0,0.00043013,25]
[349167820,1737004232949,-500.0,0.00043013,25]
[349167821,1737004232958,-500.0,0.00043013,25]
[349167822,1737004232967,-500.0,0.00043013,25]
[349167823,1737004232977,-500.0,0.00043013,25]
[349167824,1737004232986,-500.0,0.00043013,25]
[349167825,1737004232995,-500.0,0.00043013,25]
[349167826,1737004233004,-500.0,0.00043013,25]
[349167827,1737004233014,-500.0,0.00043013,25]
[349167828,1737004233023,-500.0,0.00043013,25]
[349167829,1737004233033,-500.0,0.00043013,25]
[349167830,1737004233042,-500.0,0.00043013,25]
[349167831,1737004233052,-500.0,0.00043013,25]
[349167832,1737004233062,-500.0,0.00043013,25]
[349167833,1737004233071,-500.0,0.00043013,25]
[349167834,1737004233080,-500.0,0.00043013,25]
[349167835,1737004233090,-526.92,0.00043013,25]
[349167836,1737004233099,-584.77,0.00043013,25]
[349167837,1737004233108,-500.0,0.00043013,25]
[349167838,1737004233118,-500.0,0.00043013,25]
[349167839,1737004233128,-500.0,0.00043013,25]
[349167840,1737004233137,-500.0,0.00043013,25]
[349167841,1737004233146,-506.40796315,0.00043013,25]
[349167842,1737004233155,-500.0,0.00043013,25]
[349167843,1737004233164,-150.0,0.00043014,30]
[349167844,1737004233173,-150.0,0.00043014,30]
[349167845,1737004233182,-206.86,0.00043014,30]
[349167846,1737004233191,-151.13,0.00043014,30]
[349167847,1737004233200,-150.0,0.00043014,30]
[349167848,1737004233209,-150.0,0.00043014,30]
[349167849,1737004233218,-232.49831033,0.00043016,120]
[349167850,1737004233226,-232.49831033,0.00043041,120]
[349167851,1737004233235,-232.49831033,0.00043067,120]
[349167852,1737004233244,-232.49831033,0.00043092,120]
[349167853,1737004233253,-232.49831033,0.00043118,120]
[349167854,1737004233262,-232.49831033,0.00043144,120]
[349167855,1737004233411,-232.49831033,0.00043169,120]
[349167856,1737004233421,-205.00012671,0.00043176,9]
[349167857,1737004233431,-232.49831033,0.00043195,120]
[349167858,1737004233440,-232.49831033,0.00043221,120]
[349167859,1737004233449,-232.49831033,0.00043246,120]
[349167860,1737004233459,-232.49831033,0.00043272,120]
[349167861,1737004233469,-166.72,0.00043279,2]
[349167862,1737004233478,-232.49831033,0.00043297,120]
[349167863,1737004233488,-232.49831033,0.00043323,120]
[349167864,1737004233497,-232.49831033,0.00043349,120]
[349167865,1737004233507,-232.49831033,0.00043374,120]
[349167866,1737004233517,-174.56,0.00043398,25]
[349167867,1737004233527,-5000.0,0.00043398,2]
[349167868,1737004233537,-412.5899,0.000434,2]
[349167869,1737004233547,-705.6345,0.000434,2]
[349167870,1737004233556,-6066.925593,0.000434,2]
[349167871,1737004233567,-232.49831033,0.000434,120]
[349167872,1737004233576,-205.00012671,0.00043452,9]
[349167873,1737004233586,-500.0,0.00043473,10]
[349167874,1737004233596,-511.46507717,0.00043497,25]
[349167875,1737004233605,-396.02,0.00043497,25]
[349167876,1737004233616,-387.96,0.00043497,25]
[349167877,1737004233625,-152.087134,0.00043497,25]
[349167878,1737004233635,-500.0,0.00043497,7]
[349167879,1737004233645,-500.0,0.00043497,25]
[349167880,1737004233655,-239.483278,0.00043497,25]
[349167881,1737004233664,-500.0,0.00043497,25]